Cogmind - Beta 10.2 @@@ ROGUE MODE // 2021.07.07 @ 20:55:43 Player: Cassie Rose Result: Self-destructed Performance ------------- Evolutions (2) 1000 Regions Visited (3) 600 Robots Destroyed (8) 40 Value Destroyed (173) 173 Prototype IDs (0) 0 Alien Tech Used (0) 0 Bonus (200) 200 TOTAL SCORE: 2013 Bonus ------- Pacifist 200 Cogmind --------- Core Integrity 523/550 Matter 251/300 Energy 380/380 System Corruption 2% Temperature Cool (9) Movement Rolling (90) Location -8/Materials Parts ------- > --- POWER (2) -------- Nuclear Core Nuclear Core > --- PROPULSION (4) --- Wheel Compact Wheel > --- UTILITY (3) ------ Improved Heat Sink ECM Suite > --- WEAPON (2) ------- Rocket Launcher > --- INVENTORY (4) ---- Light Ion Engine ECM Suite Mining Claw Peak State ------------ > --- POWER ------------ Nuclear Core Nuclear Core > --- PROPULSION ------- Wheel Compact Wheel > --- UTILITY ---------- Improved Heat Sink ECM Suite Hardlight Generator > --- WEAPON ----------- EM Pulse Gun Rocket Launcher > --- INVENTORY -------- Light Ion Engine ECM Suite Mining Claw [Rating: 18] Favorites ----------- Power Nuclear Core Engine Light Ion Engine Power Core Nuclear Core Propulsion Compact Wheel Wheel Compact Wheel Utility Hardlight Generator Device Hardlight Generator Weapon EM Pulse Gun Energy Gun EM Pulse Gun Launcher Rocket Launcher Slashing Weapon Mining Claw Build | -11 -10 -9 -8 ------- Run | Scr Mat Mat Mat Slots Evolved 4 | . . 2 2 Power 1 | . . 1 . Propulsion 2 | . . . 2 Utility 1 | . . 1 . Weapon . | . . . . Parts Attached 15 | 5 1 8 1 Power 3 | 1 . 2 . Engine 1 | 1 . . . Core 2 | . . 2 . Reactor . | . . . . Propulsion 3 | 2 . 1 . Treads . | . . . . Leg . | . . . . Wheel 3 | 2 . 1 . Hover . | . . . . Flight . | . . . . Utility 3 | . . 3 . Device 3 | . . 3 . Storage . | . . . . Processor . | . . . . Hackware . | . . . . Protection . | . . . . Artifact . | . . . . Weapon 6 | 2 1 2 1 Energy Gun 4 | 2 . 2 . Energy Cannon . | . . . . Ballistic Gun . | . . . . Ballistic Cannon . | . . . . Launcher 1 | . . . 1 Special Weapon . | . . . . Impact Weapon . | . . . . Slashing Weapon 1 | . 1 . . Piercing Weapon . | . . . . Special Melee Weapon . | . . . . Unidentified Prototypes . | . . . . Parts Lost 3 | . . . 3 Power . | . . . . Propulsion . | . . . . Utility 1 | . . . 1 Weapon 2 | . . . 2 Highest Loss Streak 3 | . . . 3 Average Slot Usage (%) 80 | . 53 86 80 Engine 3 | . 14 2 . Core 15 | . . 17 18 Wheel 21 | . 28 22 18 Device 22 | . . 25 27 Energy Gun 14 | . . 17 16 Slashing Weapon 2 | . 10 2 . Naked Turns . | . . . . Heaviest Build 25 | 3 5 25 25 Greatest Support 26 | 3 3 26 26 Greatest Overweight (x) 3 | . 1 3 . Average Overweight (x) . | . . . . Largest Inventory Capacity 4 | 4 4 4 4 Average Capacity 4 | 4 4 4 4 Most Carried 4 | 3 3 4 4 Average Carried 3 | 1 2 3 3 Final Capacity 4 | 4 4 4 4 Final Carried 4 | 2 2 4 3 Class Distribution -------------------- 100% | Mutant Dominant Class ---------------- Mutant | -10/Materials Mutant | -9/Materials Mutant | -8/Materials Resources | -11 -10 -9 -8 ----------- Run | Scr Mat Mat Mat Matter Collected 330 | 220 . 110 . Remotely . | . . . . Salvage Created 326 | . . 263 63 Parts 21 | . . 16 5 Haulers Intercepted 2 | . . . 2 Recyclers Shooed . | . . . . Parts Field Recycled . | . . . . Retrieved Matter . | . . . . Parts Self-Destructed . | . . . . Prevented . | . . . . Kills | -11 -10 -9 -8 ------- Run | Scr Mat Mat Mat Combat Hostiles Destroyed 3 | . . 3 . Guns 3 | . . 3 . Classes Destroyed 6 | . . 4 2 Builder 1 | . . 1 . Hauler 2 | . . . 2 Recycler 1 | . . 1 . Watcher 1 | . . . 1 Grunt 2 | . . 2 . Sentry 1 | . . 1 . Best Kill Streak 3 | . . 3 3 Combat Bots Only 1 | . . 1 . Max Kills in Single Turn 2 | . . 1 2 Gunslinging . | . . . . Exploded . | . . . . Melee . | . . . . Uniques/NPCs Destroyed . | . . . . Combat | -11 -10 -9 -8 -------- Run | Scr Mat Mat Mat Damage Taken 305 | . . 71 234 Core 27 | . . . 27 Absorbed by Shields 75 | . . 24 51 Core Remaining (%) 100 | 100 100 100 . Volleys Fired 23 | . . 12 11 Largest 2 | . . 2 2 Hottest 90 | . . 90 90 Shots Fired 43 | . . 24 19 Gun 39 | . . 24 15 Cannon . | . . . . Launcher 4 | . . . 4 Special . | . . . . Kinetic . | . . . . Thermal 18 | . . 12 6 Explosive 4 | . . . 4 Electromagnetic 21 | . . 12 9 Robot Hit Streak 12 | . . 12 5 Robot Miss Streak 4 | . . 2 4 Penetration Max . | . . . . Secondary Targets . | . . . . Shots Hit Robots 28 | . . 17 11 Core Hits 18 | . . 9 9 Critical Hits . | . . . . Critical Kills . | . . . . Critical Parts Destroyed . | . . . . Melee Attacks 4 | . 4 . . Impact . | . . . . Slashing 4 | . 4 . . Piercing . | . . . . Sneak Attacks . | . . . . Combat Hostiles . | . . . . Follow-up Attacks . | . . . . Damage Inflicted 860 | . . 171 689 Guns 308 | . . 171 137 Cannons . | . . . . Explosions 552 | . . . 552 Melee . | . . . . Ramming . | . . . . Kinetic . | . . . . Thermal 139 | . . 75 64 Explosive 552 | . . . 552 Electromagnetic 169 | . . 96 73 Impact . | . . . . Slashing . | . . . . Piercing . | . . . . Highest Corruption 2 | . . . 2 Average Corruption 2 | . . . 2 Corruption Purged . | . . . . Overload Shots . | . . . . Overflow Damage 4 | . . . 4 Projectiles . | . . . . Explosions 4 | . . . 4 Melee . | . . . . Knockbacks . | . . . . Impact . | . . . . Kinetic . | . . . . Secondary . | . . . . Self-Inflicted Damage . | . . . . Shots . | . . . . Rammed . | . . . . Targets Rammed . | . . . . Kicked . | . . . . Crushed . | . . . . Highest Temperature 40 | . . 40 . Average Temperature 17 | . . 17 . Received Heat Transfer 81 | . . 30 51 Siege Activations . | . . . . Robots Corrupted . | . . . . Combat Hostiles . | . . . . Parts Fried . | . . . . Impact Corruptions . | . . . . Robots Melted . | . . . . Combat Hostiles . | . . . . Parts Melted . | . . . . Heat Transferred 407 | . . 222 185 Parts Sabotaged . | . . . . Parts Stolen . | . . . . Parts Stripped . | . . . . Power Chain Reactions . | . . . . Missiles Intercepted . | . . . . Alert | -11 -10 -9 -8 ------- Run | Scr Mat Mat Mat Peak Influence 175 | . . 175 161 Initial 73 | . . . 73 Average 64 | . . 67 103 Maximum Alert Level . | . . . . Low Security (%) 100 | 100 100 100 100 Level 1 . | . . . . Level 2 . | . . . . Level 3 . | . . . . Level 4 . | . . . . Level 5 . | . . . . High Security . | . . . . Max Security . | . . . . Squads Dispatched 2 | . . 2 . Investigation . | . . . . Extermination . | . . . . Reinforcement 2 | . . 2 . Assault . | . . . . Garrison . | . . . . Intercept . | . . . . Construction Impeded . | . . . . Haulers Reinforced . | . . . . Stealth | -11 -10 -9 -8 --------- Run | Scr Mat Mat Mat Distress Signals 2 | . . . 2 Communications Jammed . | . . . . Distress Signals . | . . . . Times Spotted 20 | . . 14 6 Peak Tracking Total 4 | . . 4 4 Tactical Retreats 3 | . . 2 1 Traps | -11 -10 -9 -8 ------- Run | Scr Mat Mat Mat Traps Triggered 1 | . . . 1 Indirectly . | . . . . Trap Hack Attempts . | . . . . Triggered . | . . . . Disarmed . | . . . . Reprogrammed . | . . . . Reused . | . . . . Traps Extracted . | . . . . Installed . | . . . . Triggered . | . . . . Machines | -11 -10 -9 -8 ---------- Run | Scr Mat Mat Mat Machines Disabled 2 | . . . 2 Max in Single Turn 1 | . . . 1 Machines Sabotaged . | . . . . Garrisons Compromised . | . . . . Overloaded Fab Kills . | . . . . Fab Network Shutdowns . | . . . . Hacking | -11 -10 -9 -8 --------- Run | Scr Mat Mat Mat Machines Accessed 3 | . . 1 2 Terminals 3 | . . 1 2 Fabricators . | . . . . Repair Stations . | . . . . Recycling Units . | . . . . Scanalyzers . | . . . . Garrison Access . | . . . . Total Hacks 6 | . . 1 5 Successful 4 | . . 1 3 Failed 2 | . . . 2 Catastrophic 1 | . . . 1 Database Lockouts . | . . . . Manual 3 | . . . 3 Terminals 6 | . . 1 5 Fabricators . | . . . . Repair Stations . | . . . . Recycling Units . | . . . . Scanalyzers . | . . . . Garrison Access . | . . . . Terminal Hacks 3 | . . 1 2 Record 1 | . . 1 . Robot Analysis 1 | . . . 1 Zone Layout 1 | . . . 1 Fabricator Hacks . | . . . . Repair Station Hacks . | . . . . Recycling Unit Hacks . | . . . . Scanalyzer . | . . . . Garrison Access Hacks . | . . . . Unauthorized Hacks 1 | . . . 1 Terminals 1 | . . . 1 Assimilate 1 | . . . 1 Fabricators . | . . . . Repair Stations . | . . . . Recycling Units . | . . . . Scanalyzers . | . . . . Garrison Access . | . . . . Data Cores Recovered . | . . . . Used . | . . . . Hacking Detections 3 | . . 1 2 Full Trace Events . | . . . . Feedback Events . | . . . . Feedback Blocked . | . . . . Robot Schematics Acquired . | . . . . Robots Built . | . . . . Matter . | . . . . Time . | . . . . Total Robot Build Rating . | . . . . Part Schematics Acquired . | . . . . Parts Built . | . . . . Matter . | . . . . Time . | . . . . Total Part Build Rating . | . . . . Parts Repaired . | . . . . Time . | . . . . Parts Recycled . | . . . . Recycled Matter . | . . . . Retrieved Matter . | . . . . Retrieved Components . | . . . . Parts Scanalyzed . | . . . . Part Schematics Acquired . | . . . . Parts Damaged . | . . . . Bothacking | -11 -10 -9 -8 ------------ Run | Scr Mat Mat Mat Used RIF Installer . | . . . . Robots Hacked . | . . . . Non-combat . | . . . . Combat . | . . . . Robot Hacks Applied . | . . . . Relay Couplers Released . | . . . . Robots Rewired . | . . . . Allies Hacked . | . . . . Hacks Repelled . | . . . . Allies | -11 -10 -9 -8 -------- Run | Scr Mat Mat Mat Total Allies . | . . . . Largest Group . | . . . . Highest-Rated Group . | . . . . Highest-Rated Ally . | . . . . Total Orders . | . . . . Ally Attacks . | . . . . Total Damage . | . . . . Kills . | . . . . Allies Corrupted . | . . . . Allies Melted . | . . . . Intel | -11 -10 -9 -8 ------- Run | Scr Mat Mat Mat Robot Analysis Total 1 | . . . 1 Derelict Logs Recovered . | . . . . Drone Launches . | . . . . Drone Recoveries . | . . . . Exploration | -11 -10 -9 -8 ------------- Run | Scr Mat Mat Mat Turns Passed 610 | 28 79 358 145 Spaces Moved 552 | 31 79 316 126 Core 165 | 31 79 55 . Treads . | . . . . Legs . | . . . . Wheels 387 | . . 261 126 Hover . | . . . . Flight . | . . . . Fastest Speed 50 | 50 50 90 90 Average Speed 89 | 50 83 94 90 Slowest Speed 200 | 50 100 200 90 Overloaded Moves . | . . . . Propulsion Burnouts . | . . . . Robots Hopped . | . . . . Cave-ins Triggered . | . . . . Exploration Rate (%) 16 | 3 17 27 17 Regions Visited 3 Branch Regions . Pre-discovered Areas . | . . . . Known Exits Taken . | . . . . Unknown Exits Taken 3 | 1 1 1 . Scrap Searched . | . . . . Spaces Dug 2 | . 2 . . Terrain Destroyed 27 | . 2 . 25 Melee 2 | . 2 . . Projectile . | . . . . AOE 25 | . . . 25 Terrain Rammed . | . . . . Walls Destroyed . | . . . . Machines Disabled . | . . . . Actions | -11 -10 -9 -8 --------- Run | Scr Mat Mat Mat Total 617 | 44 84 351 138 Wait 8 | . . 8 . Move 549 | 30 78 315 126 Hop . | . . . . Pick Up 13 | 6 1 6 . Fast Attach 1 | . . 1 . Attach 12 | 5 1 5 1 Detach 3 | 2 . 1 . Swap 2 | . . 2 . Drop 2 | 1 . 1 . Fire 23 | . . 12 11 Melee 4 | . 4 . . Ram . | . . . . Kick . | . . . . Crush . | . . . . Escape Stasis . | . . . . Rewire . | . . . . Trap . | . . . . Miscellaneous . | . . . . Route ------- -11/Scrapyard -10/Materials (discovered 2 exits: *Mat / [*Min]) -9/Materials -8/Materials History --------- Turn | Location | Event 10 | -11/Scrapyard | Discovered new exit (range 15) 29 | -11/Scrapyard | Entered Materials 35 | -10/Materials | Discovered new exit (range 15) 100 | -10/Materials | Discovered new exit (range 9) 108 | -10/Materials | Entered another Materials area 108 | -9/Materials | Evolved 2 slots: Power x1, Utility x1 302 | -9/Materials | Build established: Mutant 386 | -9/Materials | Discovered new exit (range 15) 466 | -9/Materials | Entered another Materials area 466 | -8/Materials | Evolved 2 slots: Propulsion x2 611 | -8/Materials | Self-destructed Last Messages --------------- 00560_ System corrupted (+2). 00586_ Penetrated by Slug. 00591_ Slug penetrates Wall. 00593_ Hadron Collector disabled. 00594_ Med. Laser destroyed. 00597_ Penetrated by Slug. 00602_ A-02 Transporter destroyed. 00603_ U-05 Engineer lays Concrete. 00604_ Penetrated by Slug. 00604_ EM Pulse Gun destroyed. 00605_ U-05 Engineer lays Concrete. 00605_ A-02 Transporter destroyed. 00605_ Destroyed Imp. Hover Unit. 00605_ W-25 Informer destroyed. 00606_ U-05 Engineer lays Concrete. 00607_ Penetrated by Slug. 00609_ The unstable cave ceiling collapses. 00609_ U-05 Engineer lays Concrete. 00610_ Hardlight Generator destroyed. 00611_ U-05 Engineer lays Concrete. Map ----- +----------------------------------------------------+ | ?????????????????????????????????????????????????? | | ?????????????????????????????????????????????????? | | ?????????????????????????????????????????????????? | | ?????????????????????????????????????????????????? | | ?????????????????????????????????????????????????? | | ?????????????????????????????????????????????????? | | ?????????????????????????????????????????????????? | | ?????????????????????????????????????????????????? | | ?????????????????????????????????????????????????? | | ?????????????????????????????????????????????????? | | ????????????????????????? ?????????????????????? | | ???????????????????????#? a???????????????????? | | ??????????????????????? # " ? ????????????????? | | ?????????????????????# = "???????????????? | | ?????????????????????# ! /[%[" """ ????????????? | | ?????????????????????? !%/*[ u ????????????? | | ?????????????????????? =/g ????????????? | | ?????????????????????? " ! a #?????????????? | | ??????????????????????# g #?????????????? | | ??????????????????????? !!! #?????????????? | | ??????????????????????? !! #?????????????? | | ???????????????????????# g !! #?????????????? | | ???????????##########??? h !#?????????????? | | ???????????# #??? r #?????????????? | | ???????????# #???# """ #?????????????? | | ???????????# #???#@ R" #?????????????? | | ???????????# ##### uu """ ????????? | | ???????????# + ????????? | | ???????????#[[ ##### ????????? | | ???????????#[[ #???### ########### ?????????? | | ???????????#[[ #?????? #????????????????????? | | ???????????# #?????? #????????????????????? | | ###############+#######?????#????????????????????? | | ???????????????????? | | ???????????????????? | | ???????????????????? | | #############################????????????????????? | | ?????????????????????????????????????????????????? | | ?????????????????????????????????????????????????? | | ?????????????????????????????????????????????????? | | ?????????????????????????????????????????????????? | | #########????????????????????????????????????????? | | #????????????????????????????????????????? | | """ """ #????????????????????????????????????????? | | """ """ #????????????????????????????????????????? | | """ """ #????????????????????????????????????????? | | #????????????????????????????????????????? | | #????????????????????????????????????????? | | ] #????????????????????????????????????????? | | #????????????????????????????????????????? | +----------------------------------------------------+ Best States ------------- Heat Dissipation 45 Energy Generation 23 Energy Capacity 380 Matter Stores 300 Matter Capacity 300 Sight Range 16 Terrain Scan Density 10 ECM Strength 1 Evasion (%) 50 Item Schematics ----------------- None Robot Schematics ------------------ None Fabricated ------------ Nothing Alien Tech Used ----------------- None Achievements -------------- None Challenges ------------ None Game ------ Seed SensorCoordinationGreatsword Manual? 0 Play Time 00:14:35 Cumulative 99.5 hours Start 2021.07.07 @ 20:39:30 End 2021.07.07 @ 20:55:43 Sessions 1 Manual Loads 0 Difficulty Rogue Special Mode None Game No. 169 Rogue 169 Adventurer 0 Explorer 0 Win Type - Total 0 Types 0/0/0/0/0/0/0/0/0 Lore% 23 Gallery% 29 Achievement% 29 Wizard Run 0 Options --------- ASCII 0 Keyboard 0 Movement Mouse Keybinds 0 Fullscreen 2 Font 18/X11 Map View 76x50 Tactical HUD 1 Map Filters NONE Filters LOW_CONTRAST(13,24,33)|BRIGHTNESS(120)|SATURATION(80) Steam 1 RUN: a4fe1d6c-6c30-4562-9fd1-3badccc9bf29